bitfinex-derivatives/quotes_SOLF0:USTF0_20250131
["timestamp","ask_amount","ask_price","bid_price","bid_amount"]
[1738347646744,18.99065626,233.89,233.85,0.03238692]
[1738347646938,18.99065626,233.89,233.75,1.3746]
[1738347647139,18.96012317,233.81,233.74,1.4375]
[1738347647336,18.96012317,233.85,233.74,1.4375]
[1738347647533,4.2758,233.87,233.79,4.277]
[1738347647837,18.96012317,233.9,233.74,1.4375]
[1738347648334,4.1102,233.98,233.81,18.96012317]
[1738347648335,0.02769565,233.84,233.81,18.96012317]
[1738347648543,4.1102,233.98,233.81,18.96012317]
[1738347648742,4.1102,233.98,233.82,1.4459]
[1738347649041,18.96012317,233.96,233.82,1.4459]
[1738347649735,4.2751,233.9,233.74,1.4375]
[1738347649943,18.96012317,233.88,233.87,0.02855272]
[1738347650240,18.96012317,233.88,233.75,1.4086]
[1738347650241,18.96012317,233.88,233.85,0.02741508]
[1738347650442,18.96012317,233.88,233.75,1.4086]
[1738347650642,18.96012317,233.88,233.84,0.03190566]
[1738347650838,4.2762,233.84,233.76,4.2774]
[1738347651141,18.98865504,233.88,233.75,1.4086]
[1738347651443,0.03082895,233.84,233.78,0.02782389]
[1738347651638,18.99095212,233.84,233.78,0.02782389]
[1738347652143,0.03082895,233.84,233.78,0.02782389]
[1738347653743,18.99095212,233.84,233.78,0.02782389]
[1738347654837,4.2763,233.83,233.78,0.02782389]
[1738347655741,4.2767,233.82,233.78,0.02782389]
[1738347655946,18.99095212,233.84,233.78,0.02782389]
[1738347656441,0.03082895,233.84,233.78,0.02782389]
[1738347656840,0.03082895,233.84,233.81,4.2767]
[1738347657041,0.03082895,233.84,233.78,0.02782389]
[1738347657940,0.03082895,233.84,233.8,4.2768]
[1738347658339,0.03082895,233.84,233.78,0.02782389]
[1738347659138,4.2767,233.82,233.78,0.02782389]
[1738347659341,18.96012317,233.81,233.78,0.02782389]
[1738347659848,18.96012317,233.81,233.65,1.3932]
[1738347660346,18.96012317,233.73,233.62,2.7833]
[1738347660544,18.96012317,233.73,233.62,1.4118]
[1738347660844,4.2783,233.73,233.66,4.2794]
[1738347661049,1.16e-05,233.7,233.65,18.99211332]
[1738347661353,4.2765,233.83,233.74,4.278]
[1738347661552,3.28,233.85,233.69,17.05976378]
[1738347662147,18.96012317,233.84,233.65,18.96012317]
[1738347662450,0.02932836,233.79,233.75,0.02980789]
[1738347662645,4.2773,233.78,233.75,0.02980789]
[1738347662851,0.02932836,233.79,233.75,0.02980789]
[1738347663253,4.2774,233.77,233.75,0.02980789]
[1738347663448,0.02932836,233.79,233.75,0.02980789]
[1738347665554,4.30642836,233.79,233.75,0.02980789]
[1738347666559,0.02932836,233.79,233.75,0.02980789]
[1738347666759,4.2776,233.76,233.75,0.02980789]
[1738347668559,0.02932836,233.79,233.75,0.02980789]
[1738347671660,0.02932836,233.79,233.75,4.30760789]
[1738347671861,4.2774,233.77,233.75,0.02980789]
[1738347672057,0.02932836,233.79,233.75,0.02980789]
[1738347673065,4.2776,233.76,233.75,0.02980789]
[1738347673253,0.02932836,233.79,233.75,0.02980789]
[1738347673760,4.2775,233.77,233.75,0.02980789]
[1738347674060,0.02932836,233.79,233.75,0.02980789]
[1738347674861,0.02932836,233.79,233.76,4.2776]
[1738347675161,0.02932836,233.79,233.75,0.02980789]
[1738347675362,0.02932836,233.79,233.75,4.30760789]
[1738347675563,0.02932836,233.79,233.75,0.02980789]
[1738347676163,0.02932836,233.79,233.77,4.2774]
[1738347676760,0.02932836,233.79,233.75,0.02980789]
[1738347677361,18.98945153,233.79,233.75,0.02980789]
[1738347677760,4.2776,233.76,233.75,0.02980789]
[1738347678862,18.98945153,233.79,233.66,1.4305]
[1738347679166,18.96012317,233.75,233.66,5.7099]
[1738347679365,18.96012317,233.75,233.66,1.4305]
[1738347679868,18.96012317,233.79,233.66,1.4305]
[1738347680064,0.03142304,233.73,233.68,0.03099873]
[1738347680865,4.30972304,233.73,233.68,0.03099873]
[1738347681160,0.03142304,233.73,233.68,0.03099873]
[1738347681964,0.03142304,233.73,233.68,4.30989873]
[1738347682166,0.03142304,233.73,233.68,0.03099873]
[1738347682766,0.03142304,233.73,233.61,17.94435133]
[1738347683671,0.03142304,233.73,233.65,18.96012317]
[1738347683864,6.0002,233.86,233.72,4.2783]
[1738347684171,2.7602,233.86,233.69,18.96012317]
[1738347684865,1.4412,233.88,233.69,18.96012317]
[1738347685065,1.4412,233.88,233.75,0.02939512]
[1738347685260,0.02994698,233.8,233.79,4.2769]
[1738347685466,4.2758,233.87,233.79,4.2769]
[1738347685660,0.02918399,233.82,233.79,4.2769]
[1738347687062,4.2767,233.81,233.77,0.0287513]
[1738347687268,0.02918399,233.82,233.77,0.0287513]
[1738347687675,0.02918399,233.82,233.78,4.2772]
[1738347687862,0.02918399,233.82,233.77,0.0287513]
[1738347688962,4.2769,233.8,233.77,0.0287513]
[1738347689167,0.02918399,233.82,233.77,0.0287513]
[1738347689663,4.2767,233.81,233.77,0.0287513]
[1738347690066,0.02918399,233.82,233.77,0.0287513]
[1738347690671,0.02918399,233.82,233.81,4.2767]
[1738347691562,76.12698532,233.93,233.86,4.2756]
[1738347691769,76.12698532,233.93,233.81,18.96012317]
[1738347691963,76.12698532,233.93,233.82,1.3659]
[1738347692163,80.40148532,233.93,233.85,4.2758]
[1738347692360,76.12698532,233.93,233.78,1.3601]
[1738347692869,0.03091936,233.88,233.83,0.02730454]
[1738347693071,18.96012317,233.84,233.68,2.7872]
[1738347693464,18.96012317,233.84,233.7,4.2787]
[1738347693664,18.96012317,233.84,233.68,2.7872]
[1738347693970,18.96012317,233.79,233.68,2.7872]
[1738347694170,0.03127708,233.78,233.74,0.0299651]
[1738347694471,4.2777,233.76,233.74,0.0299651]
[1738347694668,0.03127708,233.78,233.56,18.96012317]
[1738347694865,18.96012317,233.79,233.56,18.96012317]
[1738347695265,4.2782,233.73,233.56,18.96012317]
[1738347695474,1.3469,233.78,233.56,18.96012317]
[1738347695767,0.02912565,233.69,233.65,0.02859249]
[1738347695969,4.278,233.74,233.65,0.02859249]
[1738347696271,0.03089756,233.69,233.65,0.02859249]
[1738347698669,0.03089756,233.69,233.67,4.2792]
[1738347698873,0.03089756,233.69,233.65,0.02859249]
[1738347701974,0.03089756,233.69,233.43,25.26655991]
[1738347701975,18.96012317,233.66,233.43,25.26655991]
[1738347702174,18.96012317,233.61,233.53,4.2818]
[1738347702778,23.23982317,233.65,233.54,4.2816]
[1738347702973,0.0296132,233.59,233.47,18.96012317]
[1738347703172,18.96012317,233.64,233.47,18.96012317]
[1738347703471,0.03093079,233.57,233.47,18.96012317]
[1738347703778,0.03093079,233.57,233.44,4.2151]
[1738347704080,0.03093079,233.57,233.5,4.2822]
[1738347704274,0.03093079,233.57,233.44,4.2151]
[1738347704475,0.03093079,233.57,233.51,78.04437508]
[1738347705175,0.03093079,233.57,233.55,4.2814]
[1738347705373,0.03093079,233.57,233.51,78.04437508]
[1738347706077,0.03093079,233.57,233.54,4.2816]
[1738347706574,0.03093079,233.57,233.51,78.04437508]
[1738347706880,1.4379,233.71,233.54,18.96012317]
[1738347707072,1.4379,233.71,233.55,2.8356]
[1738347707270,1.4379,233.71,233.59,4.2806]
[1738347707477,1.4379,233.71,233.55,2.8356]
[1738347707875,4.279,233.69,233.59,4.2807]
[1738347708075,0.03026409,233.65,233.61,0.03176917]
[1738347708679,0.03026409,233.65,233.63,4.28]
[1738347710379,0.03026409,233.65,233.61,0.03176917]
[1738347710579,0.03026409,233.65,233.61,4.31196917]
[1738347711081,0.03026409,233.65,233.61,0.03176917]
[1738347711279,18.96012317,233.64,233.61,0.03176917]
[1738347712280,0.03026409,233.65,233.61,0.03176917]
[1738347712784,4.30986409,233.65,233.61,0.03176917]
[1738347712978,0.03026409,233.65,233.61,0.03176917]
[1738347714379,0.03026409,233.65,233.61,4.31206917]
[1738347714579,0.03026409,233.65,233.61,0.03176917]
[1738347715779,1.3929,233.77,233.63,18.96012317]
[1738347716084,18.96012317,233.84,233.67,18.96012317]
[1738347717185,0.02722244,233.78,233.73,0.03070583]
[1738347721089,4.2775,233.77,233.73,0.03070583]
[1738347721289,0.02722244,233.78,233.73,0.03070583]
[1738347721588,0.02722244,233.78,233.73,4.30880583]
[1738347721788,0.02722244,233.78,233.73,0.03070583]
[1738347724288,0.02722244,233.78,233.74,4.2779]
[1738347724487,0.02722244,233.78,233.73,0.03070583]
[1738347724885,18.96012317,233.96,233.75,18.96012317]
[1738347725088,2.7013,233.98,233.83,18.96012317]
[1738347725291,1.3602,233.98,233.83,18.96012317]
[1738347725487,1.3602,233.98,233.84,1.4819]
[1738347725687,17.23691487,234.02,233.87,18.96012317]
[1738347725887,17.23691487,234.02,233.94,4.2743]
[1738347726195,0.03011144,233.96,233.92,0.02862907]
[1738347726390,5.74563829,234.03,233.92,0.02862907]
[1738347726595,5.74563829,234.03,233.97,4.2737]
[1738347726785,5.74563829,234.03,233.91,18.96012317]
[1738347726992,5.74563829,234.03,233.88,4.9986]
[1738347727591,3.54,234.18,233.91,18.96012317]
[1738347727788,0.03115747,233.98,233.95,18.96012317]
[1738347727994,0.03115747,233.98,233.93,0.02890973]
[1738347728997,0.03115747,233.98,233.96,4.2739]
[1738347729891,0.03115747,233.98,233.93,0.02890973]
[1738347730889,0.03115747,233.98,233.96,4.2739]
[1738347731091,18.96012317,234.16,233.95,18.96012317]
[1738347731594,23.23052317,234.16,234.05,4.2722]
[1738347731898,18.96012317,234.2,233.99,18.96012317]
[1738347732087,1.471,234.19,234.1,4.2713]
[1738347732292,1.471,234.19,234.05,0.03022042]
[1738347732796,0.0304314,234.17,234.1,0.02785675]
[1738347733393,0.0304314,234.17,234.11,4.2711]
[1738347733593,0.0304314,234.17,234.1,0.02785675]
[1738347734094,0.0304314,234.17,234.13,4.2707]
[1738347734295,0.0304314,234.17,234.1,0.02785675]
[1738347736287,0.0304314,234.17,234.1,4.29915675]
[1738347736487,0.0304314,234.17,234.1,0.02785675]
[1738347736791,0.0304314,234.17,234.01,1.4584]
[1738347736792,18.96012317,234.11,233.91,18.96012317]
[1738347736991,18.96012317,234.11,233.92,4.2301]
[1738347737394,23.23082317,234.15,234.05,4.2722]
[1738347737597,18.96012317,234.15,233.97,18.96012317]
[1738347737790,18.96012317,234.15,233.92,4.2301]
[1738347738196,0.03098853,234.08,234.04,0.02810756]
[1738347738598,0.03098853,234.08,234.04,4.30060756]
[1738347739397,0.03098853,234.08,234.04,0.02810756]
[1738347740102,0.03098853,234.08,234.04,4.30050756]
[1738347740297,0.03098853,234.08,234.04,0.02810756]
[1738347744198,0.03098853,234.08,234.04,4.30040756]
[1738347744397,0.03098853,234.08,234.04,0.02810756]
[1738347745695,0.03098853,234.08,234.07,4.2719]
[1738347746099,8.853e-05,234.08,234.07,4.2719]
[1738347746398,1.3689,234.19,234.09,4.2715]
[1738347746599,1.3525,234.26,234.12,18.96012317]
[1738347746999,1.3525,234.26,234.17,4.27]
[1738347747600,0.03153118,234.24,234.17,4.27]
[1738347747795,0.03153118,234.24,234.19,0.02975264]
[1738347748192,0.03153118,234.24,234.2,18.96012317]
[1738347748403,1.4522,234.34,234.2,18.96012317]
[1738347748593,1.4522,234.34,234.19,0.02975264]
[1738347748797,4.2673,234.33,234.24,4.2688]
[1738347749504,1.4522,234.34,234.17,2.8595]
[1738347749704,0.03245452,234.31,234.26,0.02978344]
[1738347751400,4.2678,234.3,234.26,0.02978344]
[1738347751601,18.99257769,234.31,234.13,1.4129]
[1738347751801,1.4531,234.29,234.13,1.4129]
[1738347751998,4.2689,234.24,234.14,4.2706]
[1738347752304,1.4531,234.29,234.13,1.4129]
[1738347753004,0.02881305,234.23,234.19,0.03012893]
[1738347754601,1.4522,234.34,234.2,18.96012317]
[1738347754803,1.4522,234.34,234.24,18.96012317]
[1738347755004,5.6204,234.38,234.24,18.96012317]
[1738347755299,1.3539,234.38,234.24,18.96012317]
[1738347755706,5.6203,234.38,234.3,4.2677]
[1738347755905,0.03115743,234.33,234.3,4.2677]
[1738347756108,0.03115743,234.33,234.29,0.03076385]
[1738347756304,0.03115743,234.33,234.3,4.2677]
[1738347756500,0.03115743,234.33,234.29,0.03076385]
[1738347757302,0.03115743,234.33,234.29,1.47906385]
[1738347757606,0.03115743,234.33,234.32,4.2674]
[1738347758113,0.03115743,234.33,234.3,4.2677]
[1738347758411,0.03115743,234.33,234.29,1.47906385]
[1738347758710,0.03115743,234.33,234.31,4.2676]
[1738347759210,0.03115743,234.33,234.29,1.47906385]
[1738347759412,0.03115743,234.33,234.31,4.2675]
[1738347759613,2.8258,234.45,234.29,1.47906385]
[1738347759906,2.8258,234.45,234.32,18.96012317]
[1738347760215,18.96012317,234.55,234.32,18.96012317]
[1738347760410,2.7829,234.54,234.36,18.96012317]
[1738347760610,4.2644,234.49,234.36,18.96012317]
[1738347760802,2.7829,234.54,234.36,18.96012317]
[1738347761009,4.29757535,234.47,234.43,0.03063971]
[1738347761405,0.03277535,234.47,234.43,0.03063971]
[1738347761609,4.2652,234.44,234.43,0.03063971]
[1738347761910,1.3499,234.46,234.29,1.4483]
[1738347762105,4.2659,234.4,234.31,4.2674]
[1738347762308,1.3499,234.46,234.31,4.2674]
[1738347762708,4.266,234.4,234.32,4.2674]
[1738347762905,1.3499,234.46,234.29,1.4483]
[1738347763108,0.02772907,234.41,234.36,0.02712491]
[1738347763614,4.2661,234.4,234.36,0.02712491]
[1738347764714,4.266,234.4,234.36,0.02712491]
[1738347764913,0.02772907,234.41,234.36,0.02712491]
[1738347765211,4.2665,234.37,234.36,0.02712491]
[1738347765416,4.2665,234.37,234.23,18.96012317]
[1738347765716,1.4032,234.4,234.19,18.96012317]
[1738347765717,18.96012317,234.39,234.19,18.96012317]
[1738347766017,4.2674,234.33,234.19,18.96012317]
[1738347766516,18.96012317,234.39,234.19,18.96012317]
[1738347766710,0.03197311,234.28,234.26,4.2684]
[1738347767116,1.3421,234.38,234.26,4.2684]
[1738347767517,0.0273266,234.29,234.26,4.2684]
[1738347767818,1.3421,234.38,234.26,4.2684]
[1738347768117,0.02690997,234.3,234.26,4.2684]
[1738347768818,0.02690997,234.3,234.25,0.03182985]
[1738347769618,0.02690997,234.3,234.25,4.30042985]
[1738347770019,0.02690997,234.3,234.25,0.03182985]
[1738347771220,0.02690997,234.3,234.26,4.2685]
[1738347771416,0.02690997,234.3,234.25,0.03182985]
[1738347771917,4.2683,234.28,234.25,0.03182985]
[1738347772122,0.02690997,234.3,234.25,0.03182985]
[1738347773125,4.2685,234.26,234.25,0.03182985]
[1738347774021,4.2691,234.23,234.15,4.2703]
[1738347774224,1.4766,234.25,234.07,21.75352317]
[1738347774726,4.2698,234.19,234.11,4.2712]
[1738347775026,1.4766,234.25,234.07,21.75352317]
[1738347775226,0.02958156,234.17,234.13,0.02911269]
[1738347776625,0.02958156,234.17,234.13,4.29991269]
[1738347777020,0.02958156,234.17,234.13,0.02911269]
[1738347780836,4.2709,234.13,234.05,4.2723]
[1738347781034,4.2709,234.13,233.99,92.18]
[1738347781333,18.96012317,234.15,233.99,92.18]
[1738347781535,4.271,234.12,233.99,92.18]
[1738347781834,18.96012317,234.15,233.99,92.18]
[1738347782034,0.03100641,234.08,234.05,4.2722]
[1738347782235,0.03100641,234.08,234.04,0.03173245]
[1738347783033,0.03100641,234.08,234.05,4.2723]
[1738347783535,0.03100641,234.08,234.06,4.2721]
[1738347783834,0.03100641,234.08,234.04,0.03173245]
[1738347784235,0.03100641,234.08,234.07,4.2719]
[1738347785232,0.03100641,234.08,234.04,0.03173245]
[1738347785634,4.2719,234.07,234.04,0.03173245]
[1738347785835,0.03100641,234.08,234.04,0.03173245]
[1738347786532,4.2722,234.06,234.04,0.03173245]
[1738347786734,0.03100641,234.08,234.04,0.03173245]
[1738347787236,0.03100641,234.08,234.04,4.30413245]
[1738347787436,0.03100641,234.08,234.04,0.03173245]
[1738347788532,0.03100641,234.08,234.07,4.2719]
[1738347789344,5.686,234.18,234.11,4.2712]
[1738347789547,1.416,234.18,234.05,2.7983]
[1738347790338,5.686,234.18,234.08,4.2716]
[1738347790537,0.0317507,234.14,234.09,0.03090689]
[1738347790934,0.0317507,234.14,234.13,4.2708]
[1738347791644,0.0317507,234.14,234.09,0.03090689]
[1738347792837,0.0317507,234.14,234.13,4.2708]
[1738347794649,0.0317507,234.14,234.11,4.271]
[1738347794947,0.0317507,234.14,234.09,0.03090689]
[1738347795748,0.0317507,234.14,234.11,4.2712]
[1738347795951,0.0317507,234.14,234.09,0.03090689]
[1738347796348,0.0317507,234.14,234.13,4.2708]
[1738347796547,5.07e-05,234.14,234.13,4.2708]
[1738347796748,1.4614,234.3,234.12,18.96012317]
[1738347797048,1.4614,234.3,234.16,18.96012317]
[1738347797350,1.4614,234.3,234.25,4.2686]
[1738347797544,2.8677,234.32,234.25,4.2686]
[1738347797744,20.30512317,234.39,234.2,18.96012317]
[1738347797941,4.2664,234.38,234.3,4.2677]
[1738347798141,0.03274375,234.31,234.3,4.2677]
[1738347798442,4.2656,234.42,234.24,18.96012317]
[1738347798645,0.02848129,234.33,234.28,0.02797702]
[1738347800548,0.02848129,234.33,234.32,4.2674]
[1738347801051,1.3367,234.46,234.29,4.2735]
[1738347801742,4.2656,234.42,234.29,8.5413]
[1738347802148,1.3367,234.46,234.29,4.2735]
[1738347802349,0.03219733,234.38,234.33,0.02901787]
[1738347802549,0.03219733,234.38,234.24,18.96012317]
[1738347802754,4.2665,234.37,234.24,23.22882317]
[1738347803053,18.96012317,234.43,234.29,0.02764373]
[1738347803054,0.03169847,234.33,234.29,0.02764373]
[1738347803446,18.96012317,234.43,234.29,0.02764373]
[1738347803752,0.03114881,234.33,234.29,0.02764373]
[1738347803953,18.96012317,234.43,234.29,0.02764373]
[1738347804154,0.03067695,234.33,234.29,0.02764373]
[1738347804356,18.96012317,234.43,234.29,0.02764373]
[1738347804656,4.2659,234.4,234.29,4.29554373]
[1738347804851,18.96012317,234.44,234.29,0.02764373]
[1738347805058,0.03228314,234.38,234.25,2.8603]
[1738347805257,0.03228314,234.38,234.34,0.03086229]
[1738347805450,0.03228314,234.38,234.25,2.8603]
[1738347805754,4.2665,234.37,234.34,0.028957]
[1738347805950,0.03228314,234.38,234.25,2.8603]
[1738347806154,0.03228314,234.38,234.33,0.03132286]
[1738347806554,18.96012317,234.36,234.33,0.03132286]
[1738347806752,2.7317,234.35,234.18,1.4455]
[1738347806958,4.2681,234.29,234.19,4.2696]
[1738347807158,4.2681,234.29,234.18,1.4455]
[1738347807354,4.2681,234.29,234.21,4.2694]
[1738347807557,2.7317,234.35,234.21,4.2694]
[1738347807752,2.7317,234.35,234.23,0.02884835]
[1738347807956,0.03086533,234.27,234.23,0.02884835]
[1738347809357,4.2688,234.24,234.23,0.02884835]
[1738347809663,18.96012317,234.24,234.12,1.3866]
[1738347809857,18.96012317,234.24,234.09,2.7425]
[1738347810556,4.2696,234.2,234.09,2.7425]
[1738347810757,0.03103387,234.19,234.14,0.02763472]
[1738347815168,4.2701,234.17,234.14,0.02763472]
[1738347815369,0.03103387,234.19,234.14,0.02763472]
[1738347815665,0.03103387,234.19,234.14,4.29833472]
[1738347815872,0.03103387,234.19,234.14,0.02763472]
[1738347818373,0.03103387,234.19,234.17,4.2701]
[1738347818665,0.03103387,234.19,234.14,0.02763472]
[1738347821774,0.03103387,234.19,234.18,4.2699]
[1738347822473,18.96012317,234.38,234.15,18.96012317]
[1738347822672,24.92152317,234.42,234.21,18.96012317]
[1738347823073,5.6455,234.35,234.25,4.2685]
[1738347823272,1.3786,234.35,234.25,4.2685]
[1738347823577,0.03240173,234.32,234.28,0.03007805]
[1738347825574,4.2676,234.31,234.28,0.03007805]
[1738347825779,0.03240173,234.32,234.28,0.03007805]
[1738347826478,4.2679,234.29,234.28,0.03007805]
[1738347826678,0.03240173,234.32,234.28,0.03007805]
[1738347827180,4.2676,234.31,234.28,0.03007805]
[1738347827378,0.03240173,234.32,234.28,0.03007805]
[1738347829987,0.03240173,234.32,234.3,4.2676]
[1738347830186,0.03240173,234.32,234.28,0.03007805]
[1738347831884,0.03240173,234.32,234.13,18.96012317]
[1738347832084,18.96012317,234.31,234.13,20.42532317]
[1738347832484,1.4397,234.3,234.17,4.2701]
[1738347832785,2.8486,234.3,234.13,20.42532317]
[1738347833188,0.03203777,234.24,234.19,0.03239938]
[1738347833385,18.96012317,234.2,233.99,18.96012317]
[1738347833592,18.96012317,234.2,234.04,1.4779]
[1738347833891,18.96012317,234.16,234.04,1.4779]
[1738347834188,4.2705,234.15,234.05,4.2722]
[1738347834489,18.96012317,234.16,234.04,1.4779]
[1738347834692,0.03130558,234.12,234.08,0.03046086]
[1738347835792,0.03130558,234.12,234.1,4.2714]
[1738347837586,1.4115,234.24,234.16,4.2703]
[1738347837890,1.4115,234.24,234.07,18.96012317]
[1738347838084,4.2685,234.26,234.16,4.2702]
[1738347838788,0.02980532,234.23,234.19,0.03276355]
[1738347842796,18.96012317,234.2,234.04,1.4779]
[1738347842995,4.2698,234.19,234.1,4.2714]
[1738347843294,18.96012317,234.2,234.04,1.4779]
[1738347843489,4.2698,234.19,234.1,4.2713]
[1738347843691,18.96012317,234.2,234.04,1.4779]
[1738347843989,0.0284441,234.14,234.09,0.0300306]
[1738347844699,0.0284441,234.14,234.09,4.3016306]
[1738347844996,0.0284441,234.14,234.09,0.0300306]
[1738347845402,18.96012317,234.1,233.92,9.31434346]
[1738347845692,18.96012317,234.1,233.93,4.1657]
[1738347846099,4.2718,234.08,233.99,4.2734]
[1738347846502,0.02869835,234.06,234.01,0.02852848]
[1738347847801,0.02869835,234.06,234.03,4.2725]
[1738347848504,0.02869835,234.06,234.01,0.02852848]
[1738347849700,0.02869835,234.06,234.02,4.2727]
[1738347851300,0.02869835,234.06,234.01,0.02852848]
[1738347851600,0.02869835,234.06,234.05,4.2723]
[1738347852404,0.02869835,234.06,234.04,4.2723]
[1738347852703,0.02869835,234.06,234.01,0.02852848]
[1738347852904,0.02869835,234.06,234.02,4.2728]
[1738347853202,0.02869835,234.06,234.01,0.02852848]
[1738347853907,0.02869835,234.06,234.05,4.2723]
[1738347854104,0.02869835,234.06,234.01,0.02852848]
[1738347854703,0.02869835,234.06,234.04,4.2725]
[1738347855003,0.02869835,234.06,234.01,0.02852848]
[1738347856906,0.02869835,234.06,234.05,4.2723]
[1738347858008,0.02869835,234.06,234.03,4.2725]
[1738347858209,0.02869835,234.06,234.01,0.02852848]
[1738347858709,0.02869835,234.06,234.03,4.2725]
[1738347858907,0.02869835,234.06,234.01,0.02852848]
[1738347859411,0.02869835,234.06,234.05,4.2723]
[1738347860402,0.02869835,234.06,234.01,0.02852848]
[1738347861407,0.02869835,234.06,234.02,4.2728]
[1738347861605,0.02869835,234.06,234.01,0.02852848]
[1738347862007,0.02869835,234.06,234.02,4.2728]
[1738347863108,0.02869835,234.06,234.03,4.2727]
[1738347864205,0.02869835,234.06,234.02,4.2728]
[1738347864410,0.02869835,234.06,234.01,0.02852848]
[1738347865909,0.02869835,234.06,234.03,4.2727]
[1738347866515,0.02869835,234.06,234.05,4.2723]
[1738347866712,0.02869835,234.06,234.01,0.02852848]
[1738347867110,0.02869835,234.06,234.03,4.2725]
[1738347867510,0.02869835,234.06,234.01,0.02852848]
[1738347869108,0.02869835,234.06,234.01,4.30142848]
[1738347869613,0.02869835,234.06,234.01,0.02852848]
[1738347871515,2.9318,234.19,234.01,0.02852848]
[1738347871815,4.27,234.18,234.05,11.82774453]
[1738347872318,4.2705,234.15,234.02,11.82774453]
[1738347872518,11.82774453,234.15,234.02,11.82774453]
[1738347872924,0.03214369,234.11,234.07,4.2718]
[1738347873118,11.82774453,234.08,234.06,0.02903215]
[1738347873717,16.09964453,234.08,234.06,0.02903215]
[1738347873918,11.82774453,234.08,234.06,0.02903215]
[1738347874320,4.2719,234.07,234.06,0.02903215]
[1738347875122,4.2719,234.07,233.93,2.7589]
[1738347875421,11.82774453,234.04,233.93,2.7589]
[1738347876322,11.82774453,234.04,233.96,4.30227257]
[1738347876323,0.03100152,234.01,233.96,4.30227257]
[1738347877425,0.03100152,234.01,233.96,0.02837257]
[1738347877623,11.82774453,234.0,233.96,0.02837257]
[1738347879423,0.03100152,234.01,233.96,0.02837257]
[1738347879924,0.03100152,234.01,233.98,4.2736]
[1738347880518,0.03100152,234.01,233.96,4.30227257]
[1738347880926,0.03100152,234.01,233.96,0.02837257]
[1738347882223,0.03100152,234.01,233.98,11.82774453]
[1738347882619,11.82774453,234.15,233.98,11.82774453]
[1738347882826,11.82774453,234.15,234.01,11.82774453]
[1738347883321,4.2711,234.12,234.03,4.2726]
[1738347883622,11.82774453,234.09,234.05,0.03173485]
[1738347885225,0.02751313,234.1,234.05,0.03173485]
[1738347887729,4.29891313,234.1,234.05,0.03173485]
[1738347888229,0.02751313,234.1,234.05,0.03173485]
[1738347889624,11.82774453,234.06,234.05,0.03173485]
[1738347890432,14.67804453,234.09,234.05,0.03173485]
[1738347891232,11.82774453,234.06,233.92,11.82774453]
[1738347891630,4.2724,234.05,233.96,4.2739]
[1738347891931,4.2724,234.05,233.92,11.82774453]
[1738347892534,0.03178207,234.01,233.96,0.02842538]
[1738347892935,0.03178207,234.01,233.96,4.30232538]
[1738347893733,0.03178207,234.01,233.97,4.2737]
[1738347894131,0.03178207,234.01,233.96,0.02842538]
[1738347894533,0.03178207,234.01,233.98,11.82774453]
[1738347895337,0.03178207,234.01,234.0,4.2732]
[1738347895634,14.64834453,234.15,233.98,11.82774453]
[1738347895830,14.64834453,234.15,234.01,11.82774453]
[1738347896235,4.271,234.12,234.05,4.2723]
[1738347896539,16.01334453,234.15,234.06,0.02879364]
[1738347896832,0.0324945,234.11,234.06,0.02879364]
[1738347897933,0.0324945,234.11,234.08,4.2716]
[1738347899233,0.0324945,234.11,234.06,0.02879364]
[1738347899436,0.0324945,234.11,234.07,11.82774453]
[1738347900336,0.0324945,234.11,234.1,4.2714]
[1738347902338,0.0324945,234.11,234.06,0.02879364]
[1738347902932,0.0324945,234.11,234.07,4.2719]
[1738347903132,0.0324945,234.11,234.06,0.02879364]
[1738347903439,0.0324945,234.11,234.1,4.2714]
[1738347903628,9.45e-05,234.11,234.1,4.2714]
[1738347905239,9.45e-05,234.11,234.06,0.02879364]
[1738347907236,11.82774453,234.07,234.06,0.02879364]
[1738347908335,16.09964453,234.07,234.06,0.02879364]
[1738347909441,4.2723,234.06,233.98,4.2736]
[1738347909837,4.2728,234.03,233.96,4.2738]
[1738347910233,11.82774453,234.04,233.9,2.7601]
[1738347910434,0.03125109,233.99,233.95,0.03104405]
[1738347910842,0.0327123,233.99,233.95,0.03104405]
[1738347913243,0.0327123,233.99,233.95,4.30514405]
[1738347913839,0.0327123,233.99,233.97,4.2737]
[1738347914048,0.0327123,233.99,233.95,0.03104405]
[1738347914245,13.22224453,234.1,233.95,11.85878858]
[1738347914446,4.2716,234.09,234.01,4.273]
[1738347914941,17.49364453,234.1,234.02,4.2728]
[1738347915242,1.3945,234.1,233.98,11.82774453]
[1738347915543,0.0269263,234.08,234.04,0.02716398]
[1738347915743,0.0269263,234.08,234.05,4.2723]